bitfinex-derivatives/quotes_BTCF0:USTF0_20251111
["timestamp","ask_amount","ask_price","bid_price","bid_amount"]
[1762821405923,1.21448967,105770.0,105760.0,0.15361503]
[1762821406231,1.21448967,105770.0,105760.0,0.05902803]
[1762821406620,1.21448967,105770.0,105760.0,0.15361503]
[1762821406829,1.21848967,105770.0,105760.0,0.06002803]
[1762821407239,1.22148967,105770.0,105760.0,0.06002803]
[1762821408647,1.22148967,105770.0,105760.0,0.15461503]
[1762821409136,0.76964637,105770.0,105760.0,0.15461503]
[1762821409431,0.31708307,105770.0,105760.0,1.53530163]
[1762821409936,0.31708307,105770.0,105760.0,1.44353833]
[1762821410128,0.31708307,105770.0,105760.0,1.20717833]
[1762821411024,0.31708307,105770.0,105760.0,1.44353833]
[1762821411631,0.31708307,105770.0,105760.0,1.20717833]
[1762821412026,0.40884637,105770.0,105760.0,0.84637833]
[1762821412329,0.40884637,105770.0,105760.0,1.20717833]
[1762821412834,0.50342437,105770.0,105760.0,1.11541503]
[1762821413038,0.40884637,105770.0,105760.0,0.75461503]
[1762821413539,0.40884637,105770.0,105760.0,1.11541503]
[1762821413739,0.40884637,105770.0,105760.0,1.35177503]
[1762821414036,0.40884637,105770.0,105760.0,1.11541503]
[1762821415937,0.31708307,105770.0,105760.0,1.20717833]
[1762821417030,0.31708307,105770.0,105760.0,0.60717833]
[1762821417539,0.31708307,105770.0,105760.0,0.84353833]
[1762821418341,0.31708307,105770.0,105760.0,0.60717833]
[1762821418938,0.31708307,105770.0,105760.0,0.84353833]
[1762821419532,0.31708307,105770.0,105760.0,0.60717833]
[1762821420136,0.40884637,105770.0,105760.0,0.60717833]
[1762821420341,0.40884637,105770.0,105760.0,0.51541503]
[1762821420941,0.40884637,105770.0,105760.0,0.84353833]
[1762821421144,0.40884637,105770.0,105760.0,0.60717833]
[1762821421943,0.40884637,105770.0,105760.0,0.51541503]
[1762821422142,0.50342437,105770.0,105760.0,0.51541503]
[1762821422344,0.50342437,105770.0,105760.0,0.60717833]
[1762821422538,0.50342437,105770.0,105760.0,0.51541503]
[1762821424241,0.40884637,105770.0,105760.0,0.51541503]
[1762821425137,0.40884637,105770.0,105760.0,0.60717833]
[1762821425547,0.40884637,105770.0,105760.0,0.75277833]
[1762821426235,0.40884637,105770.0,105760.0,0.83770943]
[1762821426839,0.31708307,105770.0,105760.0,0.74594613]
[1762821427236,0.47288347,105770.0,105760.0,0.20562803]
[1762821427438,0.83368347,105770.0,105760.0,0.20562803]
[1762821427641,1.25466587,105770.0,105760.0,0.20562803]
[1762821427838,1.25466587,105770.0,105760.0,0.03820803]
[1762821428036,1.53466587,105770.0,105760.0,0.03820803]
[1762821428543,1.53466587,105770.0,105760.0,0.03601]
[1762821428744,1.53466587,105770.0,105760.0,0.01473]
[1762821428943,1.53255449,105770.0,105760.0,0.001]
[1762821430339,1.53255449,105770.0,105750.0,0.00014177]
[1762821430340,0.094587,105760.0,105750.0,0.00014177]
[1762821430642,1.60564042,105760.0,105750.0,0.00014177]
[1762821430839,1.31564042,105760.0,105750.0,0.00014177]
[1762821431236,1.54564042,105760.0,105750.0,0.00014177]
[1762821431436,1.55464042,105760.0,105750.0,0.00014177]
[1762821431836,1.56264042,105760.0,105750.0,0.00014177]
[1762821434142,0.094603,105750.0,105730.0,0.05635]
[1762821434445,0.72086785,105740.0,105730.0,0.15316183]
[1762821434650,1.21120127,105740.0,105730.0,0.15316183]
[1762821435748,1.58580617,105740.0,105730.0,0.05854803]
[1762821435939,1.49220127,105740.0,105730.0,0.15316183]
[1762821436141,1.49220127,105740.0,105730.0,0.05854803]
[1762821436657,1.58680617,105740.0,105730.0,0.05854803]
[1762821436950,1.58780617,105740.0,105730.0,0.05854803]
[1762821437747,0.0946138,105730.0,105720.0,0.03407452]
[1762821437939,1.22574722,105730.0,105720.0,9.452e-05]
[1762821438136,1.13113342,105730.0,105710.0,0.05555948]
[1762821438343,0.93595622,105720.0,105710.0,6.948e-05]
[1762821438654,1.42604494,105720.0,105710.0,0.05555948]
[1762821438853,1.42604494,105720.0,105710.0,0.03404948]
[1762821439041,1.08108872,105720.0,105710.0,0.05555948]
[1762821439245,1.20142214,105720.0,105710.0,0.05775751]
[1762821439646,1.20142214,105720.0,105710.0,0.15238921]
[1762821439845,1.20942214,105720.0,105710.0,0.15238921]
[1762821440551,1.21842214,105720.0,105710.0,0.15238921]
[1762821441052,1.21842214,105720.0,105710.0,0.05775751]
[1762821441053,1.31304484,105720.0,105710.0,0.05775751]
[1762821442358,1.59304484,105720.0,105710.0,6.948e-05]
[1762821442653,0.0946317,105710.0,105700.0,0.00023651]
[1762821442838,1.23576512,105710.0,105700.0,0.00023651]
[1762821443240,1.14113342,105710.0,105700.0,0.01361651]
[1762821444153,1.14213342,105710.0,105700.0,0.06027454]
[1762821444655,0.7218,105710.0,105700.0,0.15491514]
[1762821444950,0.72132,105710.0,105700.0,0.15491514]
[1762821445147,0.361,105710.0,105700.0,0.15491514]
[1762821445341,0.361,105710.0,105700.0,0.51571514]
[1762821445545,0.361,105710.0,105700.0,0.64569748]
[1762821445744,0.361,105710.0,105700.0,0.88221748]
[1762821445946,0.362,105710.0,105700.0,0.76188406]
[1762821446153,0.362,105710.0,105700.0,0.66724346]
[1762821446458,0.362,105710.0,105700.0,0.76188406]
[1762821446651,0.362,105710.0,105700.0,0.52536406]
[1762821446842,0.362,105710.0,105700.0,0.76188406]
[1762821447048,0.362,105710.0,105700.0,0.52536406]
[1762821447260,0.362,105710.0,105700.0,0.76188406]
[1762821448054,0.362,105710.0,105700.0,0.52536406]
[1762821448548,0.362,105710.0,105700.0,1.36188406]
[1762821448851,0.362,105710.0,105700.0,0.76188406]
[1762821449237,0.362,105710.0,105700.0,0.52536406]
[1762821449438,0.362,105710.0,105700.0,0.76188406]
[1762821449651,0.362,105710.0,105700.0,0.52536406]
[1762821449859,0.362,105710.0,105700.0,0.76188406]
[1762821451249,0.362,105710.0,105700.0,0.52536406]
[1762821451450,0.362,105710.0,105700.0,0.76188406]
[1762821451658,0.362,105710.0,105700.0,0.52536406]
[1762821452156,0.362,105710.0,105700.0,0.76188406]
[1762821453252,0.362,105710.0,105700.0,0.52536406]
[1762821453555,0.362,105710.0,105700.0,0.76188406]
[1762821454147,0.362,105710.0,105700.0,0.52536406]
[1762821454348,0.4566317,105710.0,105700.0,0.52536406]
[1762821454958,0.362,105710.0,105700.0,0.52536406]
[1762821462464,0.362,105710.0,105700.0,0.67096406]
[1762821463259,0.327,105710.0,105700.0,0.88221748]
[1762821463558,0.00014177,105730.0,105720.0,0.1524627]
[1762821463756,0.37014177,105730.0,105720.0,0.51546073]
[1762821464663,0.39244177,105730.0,105720.0,0.87626073]
[1762821464864,0.39256019,105730.0,105720.0,0.87626073]
[1762821465063,0.37226019,105730.0,105720.0,0.87626073]
[1762821465264,0.37226019,105730.0,105720.0,1.23307415]
[1762821465565,0.37226019,105730.0,105720.0,0.99659415]
[1762821465862,0.41686019,105730.0,105720.0,0.87626073]
[1762821467165,0.37226019,105730.0,105720.0,1.23307415]
[1762821467365,0.0213,105750.0,105740.0,0.1524448]
[1762821467560,0.4054,105760.0,105750.0,0.1524359]
[1762821467761,0.87573342,105760.0,105750.0,0.15463393]
[1762821468071,0.35,105760.0,105750.0,0.15463393]
[1762821468367,0.3946,105760.0,105750.0,0.15463393]
[1762821468554,0.35104834,105760.0,105750.0,0.51643393]
[1762821468758,0.35304834,105760.0,105750.0,0.63676735]
[1762821469157,0.35304834,105760.0,105750.0,0.51643393]
[1762821469667,0.35304834,105760.0,105750.0,0.75283393]
[1762821470467,0.35104834,105760.0,105750.0,0.75283393]
[1762821470770,0.00014177,105770.0,105760.0,0.1525769]
[1762821470771,1e-08,105770.0,105760.0,0.1525769]
[1762821470962,0.02000001,105770.0,105760.0,0.63590835]
[1762821471157,0.37000001,105770.0,105760.0,0.87218835]
[1762821471560,0.25229609,105770.0,105760.0,0.70980683]
[1762821471762,0.52570342,105800.0,105790.0,0.1524701]
[1762821471964,0.84570342,105800.0,105790.0,0.15466813]
[1762821472160,0.36457,105800.0,105790.0,0.15466813]
[1762821472358,0.48490342,105800.0,105790.0,0.15466813]
[1762821472758,0.36457,105800.0,105790.0,0.16408088]
[1762821472973,0.36457,105800.0,105790.0,0.52488088]
[1762821473657,0.36757,105800.0,105790.0,0.52488088]
[1762821473859,0.37057,105800.0,105790.0,0.52588088]
[1762821474271,0.36757,105800.0,105790.0,0.52588088]
[1762821474460,0.4621212,105800.0,105790.0,0.52588088]
[1762821474660,0.4601212,105800.0,105790.0,0.52688088]
[1762821475871,0.36557,105800.0,105790.0,0.52688088]
[1762821477172,0.321,105800.0,105790.0,0.52688088]
[1762821477663,0.321,105800.0,105790.0,0.76320088]
[1762821478064,0.321,105800.0,105790.0,0.52688088]
[1762821478567,0.4586912,105800.0,105790.0,0.43232078]
[1762821478874,0.4586912,105800.0,105790.0,0.52688088]
[1762821478875,0.57902462,105800.0,105790.0,0.52688088]
[1762821479065,0.57902462,105800.0,105790.0,0.07152078]
[1762821479265,0.57902462,105800.0,105790.0,0.16608088]
[1762821480171,0.58843462,105800.0,105790.0,0.04833803]
[1762821480374,0.94923462,105800.0,105790.0,0.00419803]
[1762821481471,1.22923462,105800.0,105790.0,0.00419803]
[1762821482178,0.94923462,105800.0,105790.0,0.00419803]
[1762821483078,1.20923462,105800.0,105790.0,0.002]
[1762821483775,0.94923462,105800.0,105790.0,0.002]
[1762821483975,0.85468342,105800.0,105790.0,0.09875813]
[1762821484774,0.85468342,105800.0,105790.0,0.14308813]
[1762821485073,0.72494,105800.0,105790.0,0.15637813]
[1762821486076,0.36414,105800.0,105790.0,0.15637813]
[1762821486272,0.36414,105800.0,105790.0,0.51717813]
[1762821486477,0.321,105800.0,105790.0,0.51717813]
[1762821487274,0.57902462,105800.0,105790.0,0.15637813]
[1762821487578,0.36414,105800.0,105790.0,0.51717813]
[1762821488683,0.321,105800.0,105790.0,0.51717813]
[1762821488977,0.321,105800.0,105790.0,0.8395351]
[1762821489479,0.321,105800.0,105790.0,0.75349813]
[1762821489676,0.321,105800.0,105790.0,0.8395351]
[1762821490678,0.321,105800.0,105790.0,0.6032151]
[1762821490881,0.321,105800.0,105790.0,0.75349813]
[1762821491071,0.321,105800.0,105790.0,0.51717813]
[1762821491273,0.36414,105800.0,105790.0,0.51717813]
[1762821491470,0.45017697,105800.0,105790.0,0.51717813]
[1762821491875,0.90552817,105800.0,105790.0,0.06181803]
[1762821492071,0.91493817,105800.0,105790.0,0.00419803]
[1762821492271,1.03493817,105800.0,105790.0,0.00419803]
[1762821492466,0.1451101,105790.0,105780.0,0.00014177]
[1762821492674,0.94194707,105790.0,105780.0,0.00014177]
[1762821493080,0.58114707,105790.0,105780.0,0.00014177]
[1762821493276,0.58114707,105790.0,105780.0,0.0969088]
[1762821493475,0.47917697,105790.0,105780.0,0.1412388]
[1762821493673,0.47917697,105790.0,105780.0,0.1452388]
[1762821493879,0.48117697,105790.0,105780.0,0.1452388]
[1762821494187,0.57573707,105790.0,105780.0,0.1452388]
[1762821494375,0.93653707,105790.0,105780.0,0.1452388]
[1762821494578,0.48117697,105790.0,105780.0,0.1452388]
[1762821494776,0.48117697,105790.0,105780.0,0.1233988]
[1762821495076,0.48017697,105790.0,105780.0,0.1422388]
[1762821495375,0.57473707,105790.0,105780.0,0.1422388]
[1762821495580,0.93553707,105790.0,105780.0,0.1422388]
[1762821496281,0.48017697,105790.0,105780.0,0.1555288]
[1762821497681,0.48017697,105790.0,105780.0,0.1422388]
[1762821497682,0.48758697,105790.0,105780.0,0.1422388]
[1762821497981,0.48758697,105790.0,105780.0,0.5163288]
[1762821497982,0.48017697,105790.0,105780.0,0.5163288]
[1762821498183,0.39414,105790.0,105780.0,0.5163288]
[1762821498476,0.351,105790.0,105780.0,0.5163288]
[1762821498683,0.351,105790.0,105780.0,0.83868577]
[1762821498984,0.48017697,105790.0,105780.0,0.5163288]
[1762821500483,0.37286,105790.0,105780.0,0.5163288]
[1762821500874,0.351,105790.0,105780.0,0.60236577]
[1762821501783,0.31694832,105790.0,105780.0,0.60236577]
[1762821501980,0.31694832,105790.0,105780.0,0.83868577]
[1762821502184,0.31694832,105790.0,105780.0,0.60236577]
[1762821502483,0.31694832,105790.0,105780.0,0.83868577]
[1762821502684,0.31694832,105790.0,105780.0,0.60236577]
[1762821502886,0.31694832,105790.0,105780.0,0.83868577]
[1762821503189,0.001,105790.0,105780.0,0.83868577]
[1762821503484,0.001,105790.0,105780.0,0.60236577]
[1762821503879,0.001,105790.0,105780.0,0.83868577]
[1762821504682,0.001,105790.0,105780.0,0.60236577]
[1762821504879,0.001,105790.0,105780.0,0.83868577]
[1762821505786,0.001,105790.0,105780.0,0.60236577]
[1762821505989,0.001,105790.0,105780.0,0.83868577]
[1762821506493,0.04385177,105810.0,105800.0,0.1527112]
[1762821506680,0.04385177,105810.0,105800.0,0.51570923]
[1762821506988,0.04385177,105810.0,105800.0,0.58978846]
[1762821507787,0.00114177,105810.0,105800.0,0.73638846]
[1762821507987,0.00314177,105810.0,105800.0,0.82242543]
[1762821508580,0.00114177,105810.0,105800.0,0.82242543]
[1762821509196,0.00114177,105810.0,105800.0,1.18322543]
[1762821509890,0.00114177,105810.0,105800.0,1.41950543]
[1762821510788,0.00114177,105810.0,105800.0,1.18322543]
[1762821511380,0.4553212,105840.0,105830.0,0.1392944]
[1762821511381,0.49054697,105840.0,105830.0,0.1392944]
[1762821511580,0.40451,105840.0,105830.0,0.15488243]
[1762821512394,0.04371,105840.0,105830.0,0.15488243]
[1762821512689,0.68164934,105840.0,105830.0,0.00219803]
[1762821512896,0.1382344,105830.0,105820.0,0.1456]
[1762821513089,0.58507137,105830.0,105820.0,0.14779803]
[1762821513986,0.58607137,105830.0,105820.0,0.14879803]
[1762821514996,0.0945333,105820.0,105810.0,0.00014177]
[1762821515197,0.65124378,105820.0,105810.0,0.00014177]
[1762821515386,0.62740724,105820.0,105810.0,0.00014177]
[1762821515586,0.65124602,105820.0,105810.0,0.00014177]
[1762821515896,0.56520905,105820.0,105810.0,0.0023398]
[1762821516194,0.56520905,105820.0,105810.0,0.0043398]
[1762821516195,0.56620905,105820.0,105810.0,0.0043398]
[1762821516394,0.54237027,105820.0,105810.0,0.098882]
[1762821517390,0.5662194,105820.0,105810.0,0.0043398]
[1762821517698,0.5662194,105820.0,105810.0,0.0033398]
[1762821517996,0.65225637,105820.0,105810.0,0.0033398]
[1762821518293,0.65225637,105820.0,105810.0,0.00114177]
[1762821518590,0.65325637,105820.0,105810.0,0.00114177]
[1762821518784,0.5672194,105820.0,105810.0,0.0033398]
[1762821519194,0.5682194,105820.0,105810.0,0.0033398]
[1762821519983,0.5692194,105820.0,105810.0,0.0033398]
[1762821520295,0.5702194,105820.0,105810.0,0.0033398]
[1762821521187,0.65625637,105820.0,105810.0,0.00114177]
[1762821521388,0.0945428,105810.0,105780.0,0.1527258]
[1762821521589,0.54139707,105790.0,105780.0,0.01558803]
[1762821522191,0.50734042,105790.0,105780.0,0.01558803]
[1762821522398,0.50734042,105790.0,105780.0,0.00219803]
[1762821522691,0.50734042,105790.0,105780.0,0.00319803]
[1762821523293,0.50834042,105790.0,105780.0,0.00319803]
[1762821524501,0.50834042,105790.0,105780.0,0.11115703]
[1762821525195,0.50834042,105790.0,105780.0,0.01658803]
[1762821525593,0.86882042,105790.0,105780.0,0.01658803]
[1762821527299,0.95485739,105790.0,105780.0,0.001]
[1762821527505,0.094569,105780.0,105770.0,0.00014177]
[1762821527794,0.62744294,105780.0,105770.0,0.00014177]
[1762821528098,0.455369,105780.0,105770.0,0.0157298]
[1762821528291,0.62744294,105780.0,105770.0,0.0157298]
[1762821528493,0.62844294,105780.0,105770.0,0.0177298]
[1762821528900,0.62844294,105780.0,105770.0,0.1123078]
[1762821529391,0.62744294,105780.0,105770.0,0.1103078]
[1762821529596,0.62844294,105780.0,105770.0,0.1113078]
[1762821530401,0.62844294,105780.0,105770.0,0.0167298]
[1762821535794,0.62844294,105780.0,105770.0,0.1113078]
[1762821536099,0.62844294,105780.0,105770.0,0.1547178]
[1762821537907,0.62844294,105780.0,105770.0,0.0601398]
[1762821538705,0.62844294,105780.0,105770.0,0.0033398]
[1762821539994,0.62844294,105780.0,105770.0,0.0381398]
[1762821540198,0.62844294,105780.0,105770.0,0.1546878]
[1762821540814,0.44783697,105780.0,105770.0,0.1546878]
[1762821541104,0.54240597,105780.0,105770.0,0.1546878]
[1762821542104,0.18160597,105780.0,105770.0,0.1546878]
[1762821542407,0.816649,105780.0,105770.0,0.1546878]
[1762821542712,0.44783697,105780.0,105770.0,0.1546878]
[1762821543004,0.001,105780.0,105770.0,0.1546878]
[1762821543913,0.001,105780.0,105770.0,0.5154878]
[1762821544210,0.18160597,105780.0,105770.0,0.5154878]
[1762821544405,0.18160597,105780.0,105770.0,0.1556878]
[1762821544607,0.54240597,105780.0,105770.0,0.1556878]
[1762821545003,0.18160597,105780.0,105770.0,0.1556878]
[1762821545204,0.54240597,105780.0,105770.0,0.1556878]
[1762821546214,0.62844294,105780.0,105770.0,0.0621098]
[1762821546405,0.62844294,105780.0,105770.0,0.0401398]
[1762821546606,0.98880294,105780.0,105770.0,0.0053398]
[1762821547408,0.98780294,105780.0,105770.0,0.1536878]
[1762821547605,0.98880294,105780.0,105770.0,0.1546878]
[1762821547815,0.80819697,105780.0,105770.0,0.1546878]
[1762821548010,0.44783697,105780.0,105770.0,0.1546878]
[1762821548906,0.48206025,105780.0,105770.0,0.1546878]
[1762821549815,0.3618,105780.0,105770.0,0.1546878]
[1762821550114,0.48206025,105780.0,105770.0,0.1546878]
[1762821551220,0.57662925,105780.0,105770.0,0.1546878]
[1762821551517,0.57662925,105780.0,105770.0,0.0601098]
[1762821552220,0.57662925,105780.0,105770.0,0.0033398]
[1762821552818,0.57662925,105780.0,105770.0,0.0381398]
[1762821553319,0.57662925,105780.0,105770.0,0.1546878]
[1762821553519,0.48206025,105780.0,105770.0,0.1546878]
[1762821554224,0.57662925,105780.0,105770.0,0.1546878]
[1762821554811,0.48206025,105780.0,105770.0,0.1546878]
[1762821555326,0.57662925,105780.0,105770.0,0.1546878]
[1762821556522,0.48206025,105780.0,105770.0,0.1546878]
[1762821558422,0.001,105780.0,105770.0,0.1546878]
[1762821559127,0.001,105780.0,105770.0,0.2396189]
[1762821559825,0.001,105780.0,105770.0,0.6004189]
[1762821561523,0.001,105780.0,105770.0,0.5154878]
[1762821562023,0.001,105780.0,105770.0,0.6610878]
[1762821562517,0.21582925,105780.0,105770.0,0.3002878]
[1762821562729,0.57662925,105780.0,105770.0,0.3002878]
[1762821564127,0.57662925,105780.0,105770.0,0.2057098]
[1762821565413,0.57662925,105780.0,105770.0,0.3002878]
[1762821565814,0.57662925,105780.0,105770.0,0.2057098]
[1762821566418,0.57662925,105780.0,105770.0,0.3002878]
[1762821567928,0.57662925,105780.0,105770.0,0.1546878]
[1762821568624,0.57662925,105780.0,105770.0,0.0601098]
[1762821568826,0.57662925,105780.0,105770.0,0.0033398]
[1762821569019,0.57662925,105780.0,105770.0,0.0387698]
[1762821569226,0.57662925,105780.0,105770.0,0.0033398]
[1762821570426,0.57662925,105780.0,105770.0,0.00114177]
[1762821571226,0.57662925,105780.0,105770.0,0.01423177]
[1762821572430,0.57662925,105780.0,105770.0,0.0387698]
[1762821573229,0.57662925,105780.0,105770.0,0.0033398]
[1762821574917,0.57662925,105780.0,105770.0,0.0164298]
[1762821575229,0.57662925,105780.0,105770.0,0.0033398]
[1762821575431,0.57662925,105780.0,105770.0,0.0387698]
[1762821575829,0.57662925,105780.0,105770.0,0.0033398]
[1762821576737,0.57662925,105780.0,105770.0,0.00114177]
[1762821576931,0.57662925,105780.0,105750.0,0.1527759]
[1762821576932,0.094587,105760.0,105750.0,0.1527759]
[1762821577228,0.57564725,105760.0,105750.0,0.15497393]
[1762821577731,0.48106025,105760.0,105750.0,0.16424301]
[1762821578131,0.12126025,105760.0,105750.0,0.16724301]
[1762821578329,0.12226025,105760.0,105750.0,0.16724301]
[1762821578630,0.12226025,105760.0,105750.0,0.25217411]
[1762821578831,0.12126025,105760.0,105750.0,0.25217411]
[1762821579932,0.12126025,105760.0,105750.0,0.25017411]
[1762821580134,0.12126025,105760.0,105750.0,0.61097411]
[1762821580434,0.21584725,105760.0,105750.0,0.61097411]
[1762821580631,0.57564725,105760.0,105750.0,0.16424301]
[1762821580832,0.57664725,105760.0,105750.0,0.16524301]
[1762821583137,0.57664725,105760.0,105750.0,0.06137803]
[1762821584328,0.57664725,105760.0,105750.0,0.15597393]
[1762821584933,0.48206025,105760.0,105750.0,0.15597393]
[1762821585631,0.001,105760.0,105750.0,0.15597393]
[1762821585838,0.12126025,105760.0,105750.0,0.15597393]
[1762821586441,0.12126025,105760.0,105750.0,0.16554255]
[1762821586638,0.21584725,105760.0,105750.0,0.16554255]
[1762821587337,0.48206025,105760.0,105740.0,0.00014177]
[1762821587543,0.48206025,105760.0,105730.0,0.03543]
[1762821587544,0.0946049,105740.0,105730.0,0.03543]
[1762821587739,0.0946049,105740.0,105720.0,0.05798049]
[1762821587740,0.0946138,105730.0,105720.0,0.05798049]
[1762821588038,0.57567405,105730.0,105720.0,0.06017852]
[1762821588446,0.98567405,105730.0,105720.0,0.06017852]
[1762821588944,1.21567405,105730.0,105720.0,0.06017852]
[1762821589147,0.97567405,105730.0,105720.0,0.06017852]
[1762821590039,0.97667405,105730.0,105720.0,0.06117852]
[1762821590745,1.33699405,105730.0,105720.0,0.06117852]
[1762821592244,1.59699405,105730.0,105720.0,0.06117852]
[1762821593135,1.34699405,105730.0,105720.0,0.06117852]
[1762821594741,1.63699405,105730.0,105720.0,0.06117852]
[1762821594946,1.34699405,105730.0,105720.0,0.06117852]
[1762821595141,1.34699405,105730.0,105720.0,0.00329852]
[1762821595442,1.34699405,105730.0,105710.0,0.1077204]
[1762821595443,1.48238025,105730.0,105710.0,0.01283]
[1762821595640,0.57568735,105720.0,105710.0,0.03438]
[1762821595846,1.0854271,105720.0,105710.0,0.05826803]
[1762821596039,1.20568735,105720.0,105710.0,0.05826803]
[1762821596439,1.20578784,105720.0,105710.0,0.05826803]
[1762821596739,1.20678784,105720.0,105710.0,0.05926803]
[1762821596939,1.11216074,105720.0,105710.0,0.15389973]
[1762821597343,0.81216074,105720.0,105710.0,0.15389973]
[1762821598239,0.90778354,105720.0,105710.0,0.15289973]
[1762821599435,0.81316074,105720.0,105710.0,0.15289973]
[1762821600136,0.90778354,105720.0,105710.0,0.15289973]
[1762821600344,0.81316074,105720.0,105710.0,0.15289973]
[1762821600541,0.90778354,105720.0,105710.0,0.05826803]
[1762821601748,0.90778354,105720.0,105710.0,0.15289973]
[1762821601943,0.69290049,105720.0,105710.0,0.15289973]
[1762821602246,0.33210049,105720.0,105710.0,0.15289973]
[1762821602445,0.25625797,105720.0,105710.0,1.47043998]
[1762821602749,0.00014177,105740.0,105730.0,0.1141738]
[1762821602947,0.05812,105750.0,105740.0,0.1141649]
[1762821603245,0.38812,105750.0,105740.0,0.47716293]
[1762821603442,0.38812,105750.0,105740.0,0.59742318]
[1762821603949,0.38812,105750.0,105740.0,0.47716293]
[1762821604244,0.34319,105750.0,105740.0,0.47716293]
[1762821604445,0.34319,105750.0,105740.0,0.71356293]
[1762821604649,0.36572,105750.0,105740.0,0.71356293]
[1762821605043,0.36672,105750.0,105740.0,0.71456293]
[1762821605439,0.36772,105750.0,105740.0,0.71456293]
[1762821605640,0.36772,105750.0,105740.0,0.47816293]
[1762821605840,0.39012,105750.0,105740.0,0.47816293]
[1762821606147,0.39212,105750.0,105740.0,0.47816293]
[1762821606547,0.38912,105750.0,105740.0,0.47816293]
[1762821606737,0.39012,105750.0,105740.0,0.48016293]
[1762821607254,0.39012,105750.0,105740.0,0.71656293]
[1762821607855,0.39012,105750.0,105740.0,0.48016293]
[1762821608341,0.60497615,105750.0,105740.0,0.11936293]
[1762821608541,0.96577615,105750.0,105740.0,0.00519803]
[1762821608957,0.93167093,105750.0,105740.0,0.11936293]
[1762821609348,0.57087093,105750.0,105740.0,0.11936293]
[1762821609645,0.57087093,105750.0,105740.0,0.11736293]
[1762821609846,0.56987093,105750.0,105740.0,0.11836293]
[1762821610947,0.56987093,105750.0,105740.0,0.10858293]
[1762821611140,0.56987093,105750.0,105740.0,0.01397803]
[1762821611544,0.56987093,105750.0,105740.0,0.01297803]
[1762821611854,0.56987093,105750.0,105740.0,0.10858293]
[1762821612154,0.38912,105750.0,105740.0,0.11836293]
[1762821612346,0.47527503,105750.0,105740.0,0.11836293]
[1762821614257,0.56987093,105750.0,105740.0,0.11836293]
[1762821614451,0.47527503,105750.0,105740.0,0.11836293]
[1762821614750,0.65602596,105750.0,105740.0,0.002]
[1762821614952,1.01682596,105750.0,105740.0,0.00419803]
[1762821615453,1.13682596,105750.0,105740.0,0.00419803]
[1762821616055,1.31682596,105750.0,105740.0,0.002]
[1762821616448,0.92223006,105750.0,105740.0,0.09880293]
[1762821616650,0.83607503,105750.0,105740.0,0.09880293]
[1762821616850,0.93067093,105750.0,105740.0,0.09880293]
[1762821617856,0.83607503,105750.0,105740.0,0.09880293]
[1762821618054,0.83607503,105750.0,105740.0,0.10858293]
[1762821618255,0.83607503,105750.0,105740.0,0.11836293]
[1762821618756,0.93067093,105750.0,105740.0,0.00419803]
[1762821619256,0.93067093,105750.0,105740.0,0.09880293]
[1762821622053,1.01682596,105750.0,105740.0,0.09880293]
[1762821622353,0.47527503,105750.0,105740.0,0.11836293]
[1762821622655,0.38912,105750.0,105740.0,0.11836293]
[1762821622955,0.38912,105750.0,105740.0,0.71663181]
[1762821623150,0.38912,105750.0,105740.0,0.62476293]
[1762821623453,0.48098888,105750.0,105740.0,0.71663181]
[1762821624952,0.38912,105750.0,105740.0,0.62476293]
[1762821626049,0.4837159,105750.0,105740.0,0.51059803]
[1762821626359,0.1521349,105740.0,105730.0,0.00014177]
[1762821626659,0.96906175,105740.0,105730.0,0.0023398]
[1762821627456,0.96906175,105740.0,105730.0,0.0043398]
[1762821629160,0.97006175,105740.0,105730.0,0.0043398]
[1762821629861,0.97106175,105740.0,105730.0,0.0043398]
[1762821630551,0.97106175,105740.0,105730.0,0.0023398]
[1762821630865,0.8849349,105740.0,105730.0,0.0023398]
[1762821631049,0.97106175,105740.0,105730.0,0.1205135]
[1762821631653,0.51565685,105740.0,105730.0,0.1205135]
[1762821632460,0.61026165,105740.0,105730.0,0.1205135]
[1762821633161,0.97106165,105740.0,105730.0,0.0023398]
[1762821634259,0.1521616,105710.0,105700.0,0.60756953]
[1762821634458,0.58828845,105710.0,105700.0,0.22513196]
[1762821634759,0.94908845,105710.0,105700.0,0.09707514]
[1762821635155,0.94908845,105710.0,105700.0,0.00243454]
[1762821635356,0.94908845,105710.0,105700.0,0.01205874]
[1762821635561,0.95408845,105710.0,105700.0,0.01205874]
[1762821636363,0.95008845,105710.0,105700.0,0.01205874]
[1762821636558,0.95008845,105710.0,105700.0,0.10669934]
[1762821636764,0.95308845,105710.0,105700.0,0.10669934]
[1762821637261,0.95008845,105710.0,105700.0,0.10669934]
[1762821637464,0.95108845,105710.0,105700.0,0.10669934]
[1762821638367,0.40953,105710.0,105700.0,0.49133934]
[1762821638567,0.40953,105710.0,105700.0,0.57746619]
[1762821638764,0.352,105710.0,105700.0,0.57746619]
[1762821638966,0.352,105710.0,105700.0,0.81398619]
[1762821639656,0.352,105710.0,105700.0,0.69612051]
[1762821640064,0.352,105710.0,105700.0,0.93264051]
[1762821641767,0.352,105710.0,105700.0,0.69612051]
[1762821641960,0.352,105710.0,105700.0,0.93264051]
[1762821642770,0.352,105710.0,105700.0,0.69612051]
[1762821642970,0.352,105710.0,105700.0,0.93264051]
[1762821643666,0.352,105710.0,105700.0,0.69612051]
[1762821643870,0.352,105710.0,105700.0,0.81398619]
[1762821644170,0.354,105710.0,105700.0,0.81398619]
[1762821644468,0.354,105710.0,105700.0,1.41398619]
[1762821644661,0.358,105710.0,105700.0,1.41398619]
[1762821644867,0.41553,105710.0,105700.0,1.41398619]
[1762821645067,0.41553,105710.0,105700.0,1.17746619]
[1762821645471,0.41553,105710.0,105700.0,1.32785934]
[1762821645671,0.41553,105710.0,105700.0,0.49133934]
[1762821646264,0.41553,105710.0,105700.0,0.72785934]
[1762821646571,0.41553,105710.0,105700.0,0.81398619]
[1762821647163,0.358,105710.0,105700.0,1.17746619]
[1762821647374,0.358,105710.0,105700.0,1.41398619]
[1762821649172,0.39231,105710.0,105700.0,1.41398619]
[1762821649366,0.41369,105710.0,105700.0,1.41398619]
[1762821649568,0.41369,105710.0,105700.0,1.17746619]
[1762821650074,0.41369,105710.0,105700.0,1.23693934]
[1762821650368,0.41369,105710.0,105700.0,1.32306619]
[1762821652677,0.41369,105710.0,105700.0,1.68386619]
[1762821653574,0.41369,105710.0,105700.0,1.83425934]
[1762821653770,0.41369,105710.0,105700.0,1.92038619]
[1762821654171,0.41369,105710.0,105700.0,1.68386619]
[1762821655372,0.41369,105710.0,105700.0,1.92038619]
[1762821655673,0.05678177,105720.0,105710.0,0.1184716]
[1762821655879,0.29678177,105720.0,105710.0,0.71319648]
[1762821656374,0.29678177,105720.0,105710.0,0.8318508]
[1762821656971,0.29778177,105720.0,105710.0,0.8348508]
[1762821658177,0.29778177,105720.0,105710.0,0.8368508]